Cogmind - Beta 13 @@@ ROGUE MODE // 2024.06.25 @ 23:55:13 Player: ILikeVoltron Result: Destroyed by 8R-AWN with 8R-AWN's Boregun Performance ------------- Evolutions (0) 0 Regions Visited (3) 600 Robots Destroyed (13) 65 Value Destroyed (96) 96 Prototype IDs (0) 0 Alien Tech Used (0) 0 Bonus (0) 0 TOTAL SCORE: 761 Bonus ------- None Cogmind --------- Core Integrity 0/250 Matter 274/300 Energy 100/100 System Corruption 4% Temperature Cool (0) Movement Core (250) Ox4 Location -10/Exiles Parts ------- > --- POWER (1) -------- (None) > --- PROPULSION (2) --- (None) > --- UTILITY (2) ------ Medium Storage Unit > --- WEAPON (2) ------- Grenade Launcher > --- INVENTORY (10) --- Wheel Wheel Medium Matter Pod (100) Signal Interpreter Improved Terrain Scanner Tractor Beam Light Assault Rifle Light Assault Rifle Mining Laser Peak State ------------ > --- POWER ------------ Ion Engine > --- PROPULSION ------- Aluminum Leg Aluminum Leg > --- UTILITY ---------- Medium Storage Unit Improved Terrain Scanner > --- WEAPON ----------- Light Assault Rifle Light Assault Rifle > --- INVENTORY -------- Wheel Wheel Medium Matter Pod Signal Interpreter Seismic Detector Tractor Beam Light Assault Rifle Grenade Launcher Mining Laser Mining Laser [Rating: 10] Favorites ----------- Power Ion Engine Engine Ion Engine Propulsion Aluminum Leg Leg Aluminum Leg Utility Medium Storage Unit Device Seismic Detector Storage Medium Storage Unit Weapon Light Assault Rifle Energy Gun EM Pulse Gun Ballistic Gun Light Assault Rifle Launcher Grenade Launcher Special Weapon Mining Laser Build | -11 -10 -10 -10 ------- Run | Yrd Mat Min Exi Slots Evolved . | . . . . Power . | . . . . Propulsion . | . . . . Utility . | . . . . Weapon . | . . . . Parts Attached 10 | 2 2 4 2 Power . | . . . . Engine . | . . . . Core . | . . . . Reactor . | . . . . Propulsion . | . . . . Treads . | . . . . Leg . | . . . . Wheel . | . . . . Hover . | . . . . Flight . | . . . . Utility 5 | 2 1 2 . Device 4 | 2 . 2 . Storage 1 | . 1 . . Processor . | . . . . Hackware . | . . . . Protection . | . . . . Artifact . | . . . . Weapon 5 | . 1 2 2 Energy Gun . | . . . . Energy Cannon . | . . . . Ballistic Gun 3 | . 1 2 . Ballistic Cannon . | . . . . Launcher 1 | . . . 1 Special Weapon 1 | . . . 1 Impact Weapon . | . . . . Slashing Weapon . | . . . . Piercing Weapon . | . . . . Special Melee Weapon . | . . . . Unidentified Prototypes . | . . . . Parts Lost 6 | . . . 6 Power 1 | . . . 1 Propulsion 2 | . . . 2 Utility 1 | . . . 1 Weapon 2 | . . . 2 Highest Loss Streak 5 | . . . 5 To Critical Strikes 1 | . . . 1 Average Slot Usage (%) 96 | . 100 100 91 Engine 13 | . 14 14 12 Leg 26 | . 28 28 24 Device 13 | . 14 14 12 Storage 14 | . 14 14 14 Ballistic Gun 24 | . 23 28 22 Special Weapon 1 | . . . 3 Naked Turns . | . . . . Heaviest Build 18 | 14 18 18 18 Greatest Support 20 | 20 20 20 20 Greatest Overweight (x) 4 | . . . 4 Average Overweight (x) . | . . . . Largest Inventory Capacity 10 | 8 10 10 10 Average Capacity 9 | 8 8 10 10 Most Carried 10 | 8 9 10 10 Average Carried 8 | 7 8 9 9 Final Capacity 10 | 8 10 10 10 Final Carried 10 | 8 9 10 9 Class Distribution -------------------- 100% | Mutant Dominant Class ---------------- Mutant | -10/Materials Mutant | -10/Mines Mutant | -10/Exiles Resources | -11 -10 -10 -10 ----------- Run | Yrd Mat Min Exi Matter Collected 525 | 330 121 67 7 Remotely 118 | 118 . . . Salvage Created 332 | 234 44 50 4 Parts 25 | 14 5 6 . Haulers Intercepted . | . . . . Recyclers Shooed . | . . . . Parts Field Recycled . | . . . . Retrieved Matter . | . . . . Parts Self-Destructed . | . . . . Prevented . | . . . . Kills | -11 -10 -10 -10 ------- Run | Yrd Mat Min Exi Combat Hostiles Destroyed 13 | . 3 3 7 Guns 7 | . 3 3 1 Cannons 3 | . . . 3 AOE 3 | . . . 3 Classes Destroyed 5 | 3 1 . 1 Worker 2 | 2 . . . Tunneler 4 | 4 . . . Recycler 1 | 1 . . . Swarmer 6 | . 3 3 . Assembled 7 | . . . 7 Best Kill Streak 6 | 3 3 3 6 Combat Bots Only 6 | . 3 3 6 Max Kills in Single Turn 3 | 1 1 1 3 Gunslinging . | . . . . Exploded 3 | . . . 3 Melee . | . . . . Uniques/NPCs Destroyed . | . . . . Combat | -11 -10 -10 -10 -------- Run | Yrd Mat Min Exi Hostile Shots Fired 71 | . 20 28 23 Missed 13 | . 6 4 3 Damage Taken 762 | . 113 181 468 Core 256 | . 16 57 183 Absorbed by Shields . | . . . . Core Remaining (%) 100 | 100 . . . Volleys Fired 69 | 19 10 11 29 Largest 2 | 2 2 2 1 Hottest 100 | 60 60 40 100 Shots Fired 109 | 38 20 22 29 Gun 86 | 38 20 22 6 Cannon . | . . . . Launcher 3 | . . . 3 Special 20 | . . . 20 Kinetic 60 | 19 13 22 6 Thermal 20 | . . . 20 Explosive 3 | . . . 3 Electromagnetic 26 | 19 7 . . Robot Hit Streak 15 | 15 2 4 2 Robot Miss Streak 5 | 5 5 3 3 Penetration Max . | . . . . Secondary Targets 1 | . . 1 . Max Gunslinging Chain 1 | . . 1 . Shots Hit Robots 46 | 24 8 10 4 Core Hits 31 | 11 5 5 10 Critical Kills . | . . . . Critical Parts Destroyed . | . . . . Critical Strikes . | . . . . Melee Attacks . | . . . . Impact . | . . . . Slashing . | . . . . Piercing . | . . . . Sneak Attacks . | . . . . Combat Hostiles . | . . . . Follow-up Attacks . | . . . . Damage Inflicted 871 | 315 75 85 396 Guns 452 | 260 75 85 32 Cannons . | . . . . Explosions 347 | 55 . . 292 Melee . | . . . . Ramming . | . . . . Kinetic 256 | 100 39 85 32 Thermal 373 | 55 . . 318 Explosive 46 | . . . 46 Electromagnetic 196 | 160 36 . . Impact . | . . . . Slashing . | . . . . Piercing . | . . . . Highest Corruption 4 | . . . 4 Average Corruption 3 | . . . 3 Corruption Purged . | . . . . Corruption Blocked . | . . . . Overload Shots . | . . . . Overflow Damage 52 | 6 . . 46 Projectiles . | . . . . Explosions 52 | 6 . . 46 Melee . | . . . . Knockbacks . | . . . . Impact . | . . . . Kinetic . | . . . . Secondary . | . . . . Self-Inflicted Damage 135 | . . . 135 Shots 2 | . . . 2 Rammed . | . . . . Targets Rammed . | . . . . Kicked . | . . . . Crushed . | . . . . Highest Temperature 228 | 40 60 . 228 Average Temperature 50 | 20 30 . 68 Received Heat Transfer 60 | . . . 60 Siege Activations . | . . . . Robots Corrupted . | . . . . Combat Hostiles . | . . . . Parts Fried 2 | 2 . . . Impact Corruptions . | . . . . Robots Melted . | . . . . Combat Hostiles . | . . . . Parts Melted . | . . . . Heat Transferred 570 | 100 . . 470 Parts Sabotaged . | . . . . Parts Stolen . | . . . . Parts Stripped . | . . . . Power Chain Reactions 1 | 1 . . . Alert | -11 -10 -10 -10 ------- Run | Yrd Mat Min Exi Peak Influence 122 | 35 122 117 . Initial 47 | . 22 47 . Average 79 | 19 104 109 . Maximum Alert Level . | . . . . Low Security (%) 100 | 100 100 100 . Level 1 . | . . . . Level 2 . | . . . . Level 3 . | . . . . Level 4 . | . . . . Level 5 . | . . . . High Security . | . . . . Max Security . | . . . . Squads Dispatched 1 | . 1 . . Investigation . | . . . . Extermination . | . . . . Reinforcement 1 | . 1 . . Assault . | . . . . Garrison . | . . . . Intercept . | . . . . Searches Triggered . | . . . . Construction Impeded . | . . . . Haulers Reinforced . | . . . . Active Scanning Responses . | . . . . Cargo Convoy Interrupts . | . . . . Stealth | -11 -10 -10 -10 --------- Run | Yrd Mat Min Exi Distress Signals . | . . . . Communications Jammed . | . . . . Distress Signals . | . . . . Times Spotted 20 | . 5 3 12 Peak Tracking Total 10 | . 3 3 10 Tactical Retreats 3 | . 1 . 2 Traps | -11 -10 -10 -10 ------- Run | Yrd Mat Min Exi Traps Triggered . | . . . . Indirectly . | . . . . Trap Hack Attempts . | . . . . Triggered . | . . . . Disarmed . | . . . . Reprogrammed . | . . . . Reused . | . . . . Traps Extracted . | . . . . Installed . | . . . . Triggered . | . . . . Machines | -11 -10 -10 -10 ---------- Run | Yrd Mat Min Exi Machines Disabled 3 | . . . 3 Max in Single Turn 2 | . . . 2 Machines Repaired . | . . . . Machines Dismantled . | . . . . Machines Sabotaged . | . . . . Overloaded Fab Kills . | . . . . Hacking | -11 -10 -10 -10 --------- Run | Yrd Mat Min Exi Machines Accessed . | . . . . Terminals . | . . . . Fabricators . | . . . . Repair Stations . | . . . . Recycling Units . | . . . . Scanalyzers . | . . . . Garrison Access . | . . . . Total Hacks . | . . . . Successful . | . . . . Failed . | . . . . Catastrophic . | . . . . Database Lockouts . | . . . . Manual . | . . . . Terminals . | . . . . Fabricators . | . . . . Repair Stations . | . . . . Recycling Units . | . . . . Scanalyzers . | . . . . Garrison Access . | . . . . Terminal Hacks . | . . . . Fabricator Hacks . | . . . . Repair Station Hacks . | . . . . Recycling Unit Hacks . | . . . . Scanalyzer . | . . . . Garrison Access Hacks . | . . . . Unauthorized Hacks . | . . . . Terminals . | . . . . Fabricators . | . . . . Repair Stations . | . . . . Recycling Units . | . . . . Scanalyzers . | . . . . Garrison Access . | . . . . Data Cores Recovered . | . . . . Used . | . . . . Hacking Detections . | . . . . Full Trace Events . | . . . . Feedback Events . | . . . . Feedback Blocked . | . . . . Robot Schematics Acquired . | . . . . Robots Built . | . . . . Authchips . | . . . . Time . | . . . . Total Robot Build Rating . | . . . . Part Schematics Acquired . | . . . . Parts Built . | . . . . Authchips . | . . . . Time . | . . . . Total Part Build Rating . | . . . . Parts Repaired . | . . . . Time . | . . . . Parts Recycled . | . . . . Recycled Matter . | . . . . Retrieved Matter . | . . . . Retrieved Components . | . . . . Parts Scanalyzed . | . . . . Part Schematics Acquired . | . . . . Parts Damaged . | . . . . Bothacking | -11 -10 -10 -10 ------------ Run | Yrd Mat Min Exi Used RIF Installer . | . . . . Robots Hacked . | . . . . Non-combat . | . . . . Combat . | . . . . Robot Hacks Applied . | . . . . Relay Couplers Released . | . . . . Fabnet Peak Effective % . | . . . . Robots Rewired . | . . . . Allies Hacked . | . . . . Hacks Repelled . | . . . . Allies | -11 -10 -10 -10 -------- Run | Yrd Mat Min Exi Total Allies . | . . . . Largest Group . | . . . . Highest-Rated Group . | . . . . Highest-Rated Ally . | . . . . Total Orders . | . . . . Ally Attacks . | . . . . Total Damage . | . . . . Kills . | . . . . Allies Corrupted . | . . . . Allies Melted . | . . . . Intel | -11 -10 -10 -10 ------- Run | Yrd Mat Min Exi Robot Analysis Total . | . . . . Derelict Logs Recovered . | . . . . Drone Launches . | . . . . Drone Recoveries . | . . . . Exploration | -11 -10 -10 -10 ------------- Run | Yrd Mat Min Exi Turns Passed 973 | 197 163 260 353 Spaces Moved 595 | 108 103 188 196 Core 13 | . . . 13 Treads . | . . . . Legs 582 | 108 103 188 183 Wheels . | . . . . Hover . | . . . . Flight . | . . . . Fastest Speed 120 | 120 120 120 120 Average Speed 122 | 120 120 120 128 Slowest Speed 250 | 120 120 120 250 Overloaded Moves . | . . . . Propulsion Burnouts . | . . . . Robots Hopped . | . . . . Cave-ins Triggered . | . . . . Exploration Rate (%) 32 | 5 23 44 58 Regions Visited 3 Branch Regions 2 Pre-discovered Areas . | . . . . Known Exits Taken . | . . . . Unknown Exits Taken 3 | 1 1 1 . Scrap Searched . | . . . . Spaces Dug 3 | . . . 3 Terrain Destroyed 51 | 3 . . 48 Melee . | . . . . Projectile 5 | . . . 5 AOE 46 | 3 . . 43 Terrain Rammed . | . . . . Walls Destroyed . | . . . . Machines Disabled . | . . . . Actions | -11 -10 -10 -10 --------- Run | Yrd Mat Min Exi Total 702 | 142 128 204 228 Wait 11 | 4 5 1 1 Move 592 | 107 102 187 196 Hop . | . . . . Pick Up 10 | 6 4 . . Fast Attach 2 | 1 1 . . Attach 1 | . . . 1 Detach . | . . . . Swap 7 | 1 1 4 1 Drop 10 | 4 5 1 . Fire 69 | 19 10 11 29 Melee . | . . . . Ram . | . . . . Kick . | . . . . Crush . | . . . . Escape Stasis . | . . . . Rewire . | . . . . Trap . | . . . . Miscellaneous . | . . . . Route ------- -11/Scrapyard -10/Materials -10/Mines -10/Exiles History --------- Turn | Location | Event 5 | -11/Scrapyard | Discovered new exit (range 3) 198 | -11/Scrapyard | Entered Materials 330 | -10/Materials | Build established: Mutant 331 | -10/Materials | Discovered new exit (range 14) 361 | -10/Materials | Entered Mines 385 | -10/Mines | Met a Derelict bent on vengeance 615 | -10/Mines | Deemed a non-threat by the Exiles lab entrance 617 | -10/Mines | Discovered new exit (range 5) 621 | -10/Mines | Entered Exiles 650 | -10/Exiles | Met 8R-AWN 671 | -10/Exiles | Met EX-HEX 749 | -10/Exiles | Met EX-DEC 772 | -10/Exiles | Visited The Gauntlet 854 | -10/Exiles | Attacked by the Exiles 924 | -10/Exiles | Core integrity fell below 50% 937 | -10/Exiles | Core integrity fell below 20% 964 | -10/Exiles | Lost 5 parts (1p2n1u1w) 974 | -10/Exiles | Destroyed by 8R-AWN with 8R-AWN's Boregun Last Messages --------------- 00923_ EX-Generator explodes. 00923_ Destroyed Asb. Rifle. 00923_ as-82333 destroyed. 00923_ Testing Apparatus damaged. 00923_ Destroyed Asb. Hover Unit. 00923_ as-25165 destroyed. 00923_ as-28779 destroyed. 00925_ Aluminum Leg destroyed. 00925_ System corrupted by crushing effect (+3). 00929_ The unstable cave ceiling collapses. 00929_ 4 Matter crushed. 00933_ Seismic Detector destroyed. 00933_ System corrupted by crushing effect (+1). 00938_ The unstable cave ceiling collapses. 00947_ as-01987 destroyed. 00974_ Penetrated by HV Slug. 00974_ Critical hit (Destroy). 00974_ Lgt. Assault Rifle destroyed. 00974_ HV Slug penetrates Testing Apparatus. 00974_ Penetrated by HV Slug. Map ----- +----------------------------------------------------+ | ????????????????????????????????????##""" | | ?????????????????????????????????????##"""" | | ??????????????????????????????????????### | | ????????????????????????????????????????##### # | | ????????????????????????????????????????????## # | | ?????????????????????????????????????????????# # | | ?????????????????????????????????????????????# # | | ?????????????????????????????????????????????# # | | ?????????????#######???????????????####??????# # | | ????????????#"""""""?????""""""???#""""""????# # | | ????????????#"" ""???#"""""""#??#"""""""#??# # | | ????????????#" "#"""""""" "#??#" """"#??# # | | ????????????#"" ""#""#""" """#??#"" """#??# # | | ?????????????"" "?#""#"" ""????"" ""???# # | | ???????########"""###""###"""########"""###### # | | ???????#"""" "" """"""" """""""" """""" " | | ???????#" """""" """"""" | | ???????#""" | | ???????#"""" | | ???????#"" z | | ???????#""" "" "" | | ???????#"" """ """""" " """"" " """" | | ???????########""" ######"""###""###"""########"" | | ????????????#"" #?#"" ""#""#"" ""?????" | | ????????????#""" ##""" ""#""#""" ""?????" | | ????????????#" " #"@""""""""#" " "?????""" | | ????????????#"" """"""#???"""""""?????" " | | ????????????#""" g """"""?????""""""?????""" | | ????????????#### # ;;;#"####?????????????????? | | ???????????????## """""""????????????????? | | ???????????????# """"""????????????????? | | ???????????????# ; ;;;######????????????????? | | ???????????????### ;;;;;;###?????????????????????? | | | | | | | | | | | | | | | | | | | | | | | | | | | | | | | | | | | +----------------------------------------------------+ Best States ------------- Heat Dissipation 25 Energy Generation 10 Energy Capacity 250 Matter Stores 300 Matter Capacity 300 Sight Range 16 Terrain Scan Range 16 Terrain Scan Density 10 Evasion (%) 55 Item Schematics ----------------- None Robot Schematics ------------------ None Fabricated ------------ Nothing Alien Tech Used ----------------- None Achievements -------------- None Challenges ------------ None Game ------ Seed EnhancedShadeReplicator Manual? 0 Play Time 00:11:51 Cumulative 138.9 hours Start 2024.06.25 @ 23:45:30 End 2024.06.25 @ 23:55:13 Sessions 1 Manual Loads 0 Difficulty Rogue Special Mode None Game No. 225 Rogue 221 Adventurer 0 Explorer 4 Win Type - Total 0 Types 0/0/0/0/0/0/0/0/0 Lore% 29 Gallery% 47 Achievement% 34 Wizard Run 0 Options --------- Layout 1 ASCII 0 Keyboard 1 Movement Arrows Keybinds 0 Fullscreen 2 Font 32/SmallcapsGlow Map View 130x35 Zoom Use 0% Tactical HUD 1 Map Filters NONE Filters NONE Steam 1 RUN: e6a304d1-6530-4883-92b3-357e032b6086